[Event "Early-Titled-Tuesday-Blitz-February-06-2024"]
[Site "Chess.com"]
[Date "2024.02.06"]
[Round "1"]
[White "RobertJFischer71"]
[Black "PattyCastillo"]
[Result "1-0"]
[WhiteElo "2538"]
[BlackElo "1953"]
[TimeControl "180+1"]
[EndTime "8:06:56 PST"]
[Termination "RobertJFischer71 won on time"]

1. e4 {[%clk 0:03:00.9]} 1... c5 {[%clk 0:02:59]} 2. Nf3 {[%clk 0:02:59.8]} 2...
d6 {[%clk 0:02:53.3]} 3. d4 {[%clk 0:03:00.2]} 3... cxd4 {[%clk 0:02:53.2]} 4.
Nxd4 {[%clk 0:03:01.1]} 4... Nf6 {[%clk 0:02:52.9]} 5. Nc3 {[%clk 0:03:01.8]}
5... a6 {[%clk 0:02:53]} 6. h3 {[%clk 0:03:02.3]} 6... e6 {[%clk 0:02:52.3]} 7.
g4 {[%clk 0:03:02.1]} 7... d5 {[%clk 0:02:44.6]} 8. exd5 {[%clk 0:02:56.5]} 8...
Nxd5 {[%clk 0:02:43.5]} 9. Nde2 {[%clk 0:02:57.1]} 9... Bb4 {[%clk 0:02:41.6]}
10. Bg2 {[%clk 0:02:57.1]} 10... O-O {[%clk 0:02:39.5]} 11. Bd2 {[%clk
0:02:55.6]} 11... Nxc3 {[%clk 0:02:37.6]} 12. Nxc3 {[%clk 0:02:56.5]} 12... Nc6
{[%clk 0:02:36.4]} 13. Bxc6 {[%clk 0:02:51.4]} 13... bxc6 {[%clk 0:02:36.1]} 14.
Qf3 {[%clk 0:02:52.2]} 14... Qb6 {[%clk 0:02:24.1]} 15. O-O-O {[%clk 0:02:50.9]}
15... a5 {[%clk 0:02:17.9]} 16. a3 {[%clk 0:02:47.6]} 16... Be7 {[%clk
0:02:07.6]} 17. Be3 {[%clk 0:02:46.7]} 17... Qc7 {[%clk 0:01:58.4]} 18. Ne4
{[%clk 0:02:39]} 18... c5 {[%clk 0:01:52]} 19. Bf4 {[%clk 0:02:34.7]} 19... Qb7
{[%clk 0:01:42.6]} 20. Qe3 {[%clk 0:02:29.1]} 20... Bd7 {[%clk 0:01:18.4]} 21.
Bd6 {[%clk 0:02:27]} 21... Bc6 {[%clk 0:01:14.4]} 22. Bxe7 {[%clk 0:02:26.9]}
22... Qxe7 {[%clk 0:01:14.3]} 23. Rhe1 {[%clk 0:02:26.4]} 23... Bxe4 {[%clk
0:01:10]} 24. Qxe4 {[%clk 0:02:27.3]} 24... Rab8 {[%clk 0:01:06.5]} 25. f4
{[%clk 0:02:24.6]} 25... Qf6 {[%clk 0:01:03.4]} 26. Qe5 {[%clk 0:02:25]} 26...
Qh4 {[%clk 0:01:02.1]} 27. Re3 {[%clk 0:02:13.3]} 27... Qf2 {[%clk 0:00:43.3]}
28. Red3 {[%clk 0:01:52.2]} 28... c4 {[%clk 0:00:40.1]} 29. Rd7 {[%clk 0:01:52]}
29... c3 {[%clk 0:00:37.9]} 30. b3 {[%clk 0:01:36.9]} 30... a4 {[%clk
0:00:30.6]} 31. b4 {[%clk 0:01:36.5]} 31... Rbc8 {[%clk 0:00:15.1]} 32. f5
{[%clk 0:01:35.2]} 32... exf5 {[%clk 0:00:11.6]} 33. gxf5 {[%clk 0:01:36.1]}
33... Qf3 {[%clk 0:00:07.8]} 34. R7d3 {[%clk 0:01:25.4]} 34... Qf2 {[%clk
0:00:07.5]} 35. Rg3 {[%clk 0:01:18.5]} 35... f6 {[%clk 0:00:06.1]} 36. Qe6+
{[%clk 0:01:10.9]} 36... Kh8 {[%clk 0:00:06]} 37. Rgd3 {[%clk 0:01:09]} 37...
Qf4+ {[%clk 0:00:05.4]} 38. Kb1 {[%clk 0:01:09.6]} 38... Qc7 {[%clk 0:00:02.7]}
39. Rd7 {[%clk 0:01:06.3]} 39... Qc4 {[%clk 0:00:01.5]} 40. Qe7 {[%clk
0:01:02.6]} 1-0

[Event "Early-Titled-Tuesday-Blitz-February-06-2024"]
[Site "Chess.com"]
[Date "2024.02.06"]
[Round "1"]
[White "Jumbo"]
[Black "noblerone"]
[Result "1-0"]
[WhiteElo "2857"]
[BlackElo "2469"]
[TimeControl "180+1"]
[EndTime "8:07:03 PST"]
[Termination "Jumbo won by resignation"]

1. Nf3 {[%clk 0:02:56.3]} 1... d5 {[%clk 0:02:55]} 2. e3 {[%clk 0:02:55.3]} 2...
Nf6 {[%clk 0:02:55.5]} 3. b3 {[%clk 0:02:55.9]} 3... c5 {[%clk 0:02:51.6]} 4.
Bb2 {[%clk 0:02:55.9]} 4... Nc6 {[%clk 0:02:50.3]} 5. Bb5 {[%clk 0:02:56]} 5...
Bd7 {[%clk 0:02:48.5]} 6. O-O {[%clk 0:02:54.9]} 6... e6 {[%clk 0:02:46.1]} 7.
d3 {[%clk 0:02:54.6]} 7... Bd6 {[%clk 0:02:46.3]} 8. Bxc6 {[%clk 0:02:55]} 8...
Bxc6 {[%clk 0:02:46.4]} 9. Ne5 {[%clk 0:02:55.7]} 9... Bb5 {[%clk 0:02:42.1]}
10. a4 {[%clk 0:02:39]} 10... Ba6 {[%clk 0:02:37]} 11. Nd2 {[%clk 0:02:38.9]}
11... O-O {[%clk 0:02:37.4]} 12. f4 {[%clk 0:02:38.6]} 12... Nd7 {[%clk
0:02:31.6]} 13. Qg4 {[%clk 0:02:19.4]} 13... f5 {[%clk 0:02:16.6]} 14. Qg3
{[%clk 0:02:05.2]} 14... Nxe5 {[%clk 0:01:54.9]} 15. Bxe5 {[%clk 0:01:35.6]}
15... Bxe5 {[%clk 0:01:54]} 16. fxe5 {[%clk 0:01:36.5]} 16... Qa5 {[%clk
0:01:53.3]} 17. Nf3 {[%clk 0:01:33]} 17... Qc3 {[%clk 0:01:47.8]} 18. Rac1
{[%clk 0:01:23.7]} 18... Rae8 {[%clk 0:01:42.9]} 19. h4 {[%clk 0:01:22.7]} 19...
b6 {[%clk 0:01:27.4]} 20. h5 {[%clk 0:01:20.7]} 20... h6 {[%clk 0:00:59.9]} 21.
Nh4 {[%clk 0:00:58.3]} 21... Bb7 {[%clk 0:00:36.8]} 22. Ng6 {[%clk 0:00:56.4]}
22... Rf7 {[%clk 0:00:36.3]} 23. Qe1 {[%clk 0:00:47.1]} 23... Qxe1 {[%clk
0:00:20.4]} 24. Rfxe1 {[%clk 0:00:48]} 24... Rc7 {[%clk 0:00:20.6]} 25. c3
{[%clk 0:00:46.3]} 25... Kf7 {[%clk 0:00:17.6]} 26. a5 {[%clk 0:00:42.3]} 26...
b5 {[%clk 0:00:16.9]} 27. Nf4 {[%clk 0:00:39]} 27... Ke7 {[%clk 0:00:14.8]} 28.
Kf2 {[%clk 0:00:37.7]} 28... Rec8 {[%clk 0:00:13.3]} 29. Ke2 {[%clk 0:00:37.8]}
29... Bc6 {[%clk 0:00:13.7]} 30. Kd2 {[%clk 0:00:37.3]} 30... Be8 {[%clk
0:00:13.6]} 31. b4 {[%clk 0:00:23.2]} 31... cxb4 {[%clk 0:00:13.4]} 32. cxb4
{[%clk 0:00:23.1]} 32... a6 {[%clk 0:00:12.1]} 33. Rxc7+ {[%clk 0:00:21.7]}
33... Rxc7 {[%clk 0:00:13]} 34. Rh1 {[%clk 0:00:21.7]} 34... Rc1 {[%clk
0:00:13.8]} 35. Rxc1 {[%clk 0:00:21.2]} 1-0

[Event "Early-Titled-Tuesday-Blitz-February-06-2024"]
[Site "Chess.com"]
[Date "2024.02.06"]
[Round "1"]
[White "Massakru"]
[Black "Timerkhanov"]
[Result "0-1"]
[WhiteElo "2324"]
[BlackElo "2649"]
[TimeControl "180+1"]
[EndTime "8:07:03 PST"]
[Termination "Timerkhanov won on time"]

1. e4 {[%clk 0:03:00.9]} 1... c5 {[%clk 0:02:59.2]} 2. Nf3 {[%clk 0:03:00.7]}
2... a6 {[%clk 0:02:59.6]} 3. c3 {[%clk 0:03:00.6]} 3... d5 {[%clk 0:02:59.1]}
4. exd5 {[%clk 0:03:00.2]} 4... Nf6 {[%clk 0:02:59.7]} 5. d4 {[%clk 0:02:51.4]}
5... cxd4 {[%clk 0:03:00.6]} 6. Qxd4 {[%clk 0:02:48.9]} 6... Qxd5 {[%clk
0:02:59.8]} 7. Qxd5 {[%clk 0:02:45.6]} 7... Nxd5 {[%clk 0:03:00.7]} 8. Nbd2
{[%clk 0:02:37.3]} 8... Nc6 {[%clk 0:02:58.3]} 9. Nc4 {[%clk 0:02:16.5]} 9... b5
{[%clk 0:02:53.1]} 10. Nce5 {[%clk 0:02:06.9]} 10... Nxe5 {[%clk 0:02:50.6]} 11.
Nxe5 {[%clk 0:02:06.9]} 11... Bb7 {[%clk 0:02:51.1]} 12. Be2 {[%clk 0:01:59.4]}
12... f6 {[%clk 0:02:51.2]} 13. Nd3 {[%clk 0:01:57.9]} 13... e5 {[%clk 0:02:51]}
14. O-O {[%clk 0:01:57.6]} 14... Bd6 {[%clk 0:02:41.8]} 15. Rd1 {[%clk
0:01:55.1]} 15... Ke7 {[%clk 0:02:39.9]} 16. Bf3 {[%clk 0:01:55.2]} 16... Rhd8
{[%clk 0:02:35.4]} 17. Bd2 {[%clk 0:01:36.3]} 17... h6 {[%clk 0:02:25.8]} 18.
Be1 {[%clk 0:01:30.3]} 18... f5 {[%clk 0:02:24.3]} 19. Nf4 {[%clk 0:00:58.6]}
19... Nxf4 {[%clk 0:01:49.2]} 20. Bxb7 {[%clk 0:00:57.4]} 20... Ra7 {[%clk
0:01:49.7]} 21. Bf3 {[%clk 0:00:51.7]} 21... e4 {[%clk 0:01:49.3]} 22. g3 {[%clk
0:00:37.4]} 22... Nd3 {[%clk 0:01:28.8]} 23. Be2 {[%clk 0:00:36.3]} 23... Nxb2
{[%clk 0:01:29]} 24. Rd5 {[%clk 0:00:31.8]} 24... Ke6 {[%clk 0:01:26.2]} 25. Rd4
{[%clk 0:00:18.3]} 25... Rad7 {[%clk 0:01:22.5]} 26. Rb1 {[%clk 0:00:17.2]}
26... Ba3 {[%clk 0:01:10.5]} 27. Rxd7 {[%clk 0:00:12.9]} 27... Rxd7 {[%clk
0:01:11.4]} 28. Kf1 {[%clk 0:00:11.5]} 28... g5 {[%clk 0:01:03]} 29. f3 {[%clk
0:00:10.7]} 29... e3 {[%clk 0:00:58]} 30. f4 {[%clk 0:00:09.2]} 30... g4 {[%clk
0:00:48.5]} 31. Kg2 {[%clk 0:00:08.5]} 31... Kd5 {[%clk 0:00:41]} 32. h3 {[%clk
0:00:07.2]} 32... h5 {[%clk 0:00:40.4]} 33. hxg4 {[%clk 0:00:06.9]} 33... hxg4
{[%clk 0:00:41.3]} 34. Rc1 {[%clk 0:00:05]} 34... Ke4 {[%clk 0:00:40.8]} 35. Rc2
{[%clk 0:00:04.3]} 35... Nc4 {[%clk 0:00:38.1]} 36. Bf1 {[%clk 0:00:01.4]} 36...
Rd1 {[%clk 0:00:36.8]} 0-1

[Event "Early-Titled-Tuesday-Blitz-February-06-2024"]
[Site "Chess.com"]
[Date "2024.02.06"]
[Round "1"]
[White "Dacean99"]
[Black "erugee"]
[Result "1-0"]
[WhiteElo "2655"]
[BlackElo "2341"]
[TimeControl "180+1"]
[EndTime "8:07:05 PST"]
[Termination "Dacean99 won on time"]

1. e4 {[%clk 0:03:00.9]} 1... e5 {[%clk 0:02:59.5]} 2. Nf3 {[%clk 0:03:00.1]}
2... Nc6 {[%clk 0:03:00]} 3. d4 {[%clk 0:03:00.3]} 3... exd4 {[%clk 0:02:57.7]}
4. Bc4 {[%clk 0:03:00.8]} 4... Nf6 {[%clk 0:02:54.6]} 5. e5 {[%clk 0:03:00.9]}
5... d5 {[%clk 0:02:51.5]} 6. Bb5 {[%clk 0:02:59.8]} 6... Ne4 {[%clk 0:02:51.4]}
7. Nxd4 {[%clk 0:03:00]} 7... Bd7 {[%clk 0:02:51.7]} 8. Bxc6 {[%clk 0:03:00.2]}
8... bxc6 {[%clk 0:02:50.8]} 9. O-O {[%clk 0:02:57.2]} 9... c5 {[%clk
0:02:50.4]} 10. Nb3 {[%clk 0:02:56]} 10... c4 {[%clk 0:02:38.4]} 11. Qxd5 {[%clk
0:02:34.7]} 11... cxb3 {[%clk 0:02:34.6]} 12. Qxe4 {[%clk 0:02:33.7]} 12... bxc2
{[%clk 0:02:33.6]} 13. Qxc2 {[%clk 0:02:33]} 13... Qc8 {[%clk 0:02:12.4]} 14.
Be3 {[%clk 0:02:28.1]} 14... Be7 {[%clk 0:02:11.1]} 15. Nc3 {[%clk 0:02:26.7]}
15... Qb7 {[%clk 0:02:01.9]} 16. Rad1 {[%clk 0:02:21]} 16... Be6 {[%clk
0:01:56.5]} 17. Qa4+ {[%clk 0:02:17.1]} 17... c6 {[%clk 0:01:56]} 18. Ne4 {[%clk
0:02:15.3]} 18... O-O {[%clk 0:01:52.5]} 19. b3 {[%clk 0:02:13]} 19... Bd5
{[%clk 0:01:47]} 20. Nd6 {[%clk 0:01:59.8]} 20... Qc7 {[%clk 0:01:31.6]} 21. Bc5
{[%clk 0:01:55.7]} 21... Rfd8 {[%clk 0:01:23.5]} 22. f4 {[%clk 0:01:50.7]} 22...
Qd7 {[%clk 0:01:15.8]} 23. Qd4 {[%clk 0:01:42.5]} 23... Qg4 {[%clk 0:01:14.3]}
24. Qf2 {[%clk 0:01:40.6]} 24... f6 {[%clk 0:00:57.4]} 25. h3 {[%clk 0:01:35.6]}
25... Qh5 {[%clk 0:00:50]} 26. Rde1 {[%clk 0:01:26.5]} 26... Rf8 {[%clk
0:00:46.8]} 27. f5 {[%clk 0:01:08.1]} 27... fxe5 {[%clk 0:00:43.5]} 28. Rxe5
{[%clk 0:01:07.3]} 28... Bh4 {[%clk 0:00:43.7]} 29. Qe2 {[%clk 0:01:03.9]} 29...
Qh6 {[%clk 0:00:33.9]} 30. Qg4 {[%clk 0:00:44.1]} 30... Rad8 {[%clk 0:00:27.3]}
31. Ne4 {[%clk 0:00:39.9]} 31... Rfe8 {[%clk 0:00:20.4]} 32. Rxe8+ {[%clk
0:00:33.7]} 32... Rxe8 {[%clk 0:00:20.4]} 33. f6 {[%clk 0:00:27.7]} 33... Bxf6
{[%clk 0:00:10.7]} 34. Nxf6+ {[%clk 0:00:27]} 34... Kh8 {[%clk 0:00:06.5]} 35.
Nxe8 {[%clk 0:00:25.1]} 1-0

[Event "Early-Titled-Tuesday-Blitz-February-06-2024"]
[Site "Chess.com"]
[Date "2024.02.06"]
[Round "1"]
[White "salomez"]
[Black "JoachimBN"]
[Result "0-1"]
[WhiteElo "2294"]
[BlackElo "2621"]
[TimeControl "180+1"]
[EndTime "8:07:07 PST"]
[Termination "JoachimBN won on time"]

1. e4 {[%clk 0:02:59.4]} 1... c5 {[%clk 0:02:59.2]} 2. Nf3 {[%clk 0:02:59]} 2...
g6 {[%clk 0:02:59.1]} 3. d4 {[%clk 0:02:56.2]} 3... cxd4 {[%clk 0:02:59]} 4.
Nxd4 {[%clk 0:02:57.1]} 4... Bg7 {[%clk 0:02:59.3]} 5. Nc3 {[%clk 0:02:56.4]}
5... Nc6 {[%clk 0:02:59.5]} 6. Nb3 {[%clk 0:02:56.3]} 6... Nf6 {[%clk
0:02:57.3]} 7. Be2 {[%clk 0:02:56.7]} 7... O-O {[%clk 0:02:15.5]} 8. O-O {[%clk
0:02:55.1]} 8... d6 {[%clk 0:01:53.7]} 9. Bg5 {[%clk 0:02:53]} 9... a6 {[%clk
0:01:54.2]} 10. Kh1 {[%clk 0:02:50.7]} 10... b5 {[%clk 0:01:45.6]} 11. f4 {[%clk
0:02:29.4]} 11... Bb7 {[%clk 0:01:45.7]} 12. Bf3 {[%clk 0:02:28.4]} 12... b4
{[%clk 0:01:43.8]} 13. Nd5 {[%clk 0:02:22.4]} 13... Nxd5 {[%clk 0:01:41.8]} 14.
exd5 {[%clk 0:02:23.3]} 14... Na5 {[%clk 0:01:41.4]} 15. Re1 {[%clk 0:02:21.9]}
15... Re8 {[%clk 0:01:27]} 16. Nxa5 {[%clk 0:01:29.1]} 16... Qxa5 {[%clk
0:01:25.1]} 17. Rxe7 {[%clk 0:01:15.2]} 17... Rxe7 {[%clk 0:01:12.9]} 18. Bxe7
{[%clk 0:01:16.1]} 18... Qc7 {[%clk 0:01:10.3]} 19. Bg5 {[%clk 0:01:05.9]} 19...
Bxb2 {[%clk 0:01:10.2]} 20. Rb1 {[%clk 0:00:45.8]} 20... Bc3 {[%clk 0:01:06.9]}
21. f5 {[%clk 0:00:32.6]} 21... Re8 {[%clk 0:01:05.4]} 22. Qd3 {[%clk
0:00:27.8]} 22... Qc5 {[%clk 0:01:00.5]} 23. fxg6 {[%clk 0:00:21.8]} 23... hxg6
{[%clk 0:01:00.1]} 24. Be4 {[%clk 0:00:20.6]} 24... Kg7 {[%clk 0:00:47.4]} 25.
Rf1 {[%clk 0:00:19.8]} 25... Qd4 {[%clk 0:00:41.9]} 26. Qf3 {[%clk 0:00:19.3]}
26... f5 {[%clk 0:00:34.4]} 27. Bxf5 {[%clk 0:00:14.3]} 27... Rf8 {[%clk
0:00:34.7]} 28. Qh3 {[%clk 0:00:02.9]} 28... Rxf5 {[%clk 0:00:31.4]} 29. Qh6+
{[%clk 0:00:03.8]} 29... Kf7 {[%clk 0:00:27]} 30. Qxg6+ {[%clk 0:00:04.7]} 30...
Kxg6 {[%clk 0:00:24.8]} 0-1

[Event "Early-Titled-Tuesday-Blitz-February-06-2024"]
[Site "Chess.com"]
[Date "2024.02.06"]
[Round "1"]
[White "RianKapriaga"]
[Black "jaskol95"]
[Result "0-1"]
[WhiteElo "2265"]
[BlackElo "2607"]
[TimeControl "180+1"]
[EndTime "8:07:09 PST"]
[Termination "jaskol95 won on time"]

1. d4 {[%clk 0:03:00.9]} 1... d5 {[%clk 0:02:59.8]} 2. Nf3 {[%clk 0:03:00]} 2...
Nf6 {[%clk 0:02:54.9]} 3. Bf4 {[%clk 0:02:58.6]} 3... e6 {[%clk 0:02:48.8]} 4.
e3 {[%clk 0:02:57.5]} 4... c5 {[%clk 0:02:49.2]} 5. Nbd2 {[%clk 0:02:55.5]} 5...
Nc6 {[%clk 0:02:48.4]} 6. c3 {[%clk 0:02:54.1]} 6... Bd6 {[%clk 0:02:48]} 7. Bg3
{[%clk 0:02:52.8]} 7... O-O {[%clk 0:02:48.1]} 8. Bb5 {[%clk 0:02:52.4]} 8...
cxd4 {[%clk 0:02:44.7]} 9. exd4 {[%clk 0:02:50.5]} 9... a6 {[%clk 0:02:31.3]}
10. Bd3 {[%clk 0:02:38.6]} 10... Qc7 {[%clk 0:02:18.3]} 11. O-O {[%clk
0:02:33.5]} 11... Bxg3 {[%clk 0:02:17.9]} 12. hxg3 {[%clk 0:02:34.4]} 12... b5
{[%clk 0:02:15.6]} 13. a3 {[%clk 0:02:31.7]} 13... Na5 {[%clk 0:02:03.8]} 14.
Re1 {[%clk 0:02:25.9]} 14... Nc4 {[%clk 0:02:03.9]} 15. Qc2 {[%clk 0:02:18.6]}
15... h6 {[%clk 0:02:00.1]} 16. Ne5 {[%clk 0:02:09.8]} 16... Nd7 {[%clk
0:01:44.1]} 17. Ndf3 {[%clk 0:02:01.9]} 17... Ndxe5 {[%clk 0:01:43.1]} 18. Nxe5
{[%clk 0:02:01.3]} 18... Bd7 {[%clk 0:01:38.6]} 19. Re2 {[%clk 0:01:59.4]} 19...
Nxe5 {[%clk 0:01:33.9]} 20. Rxe5 {[%clk 0:01:56.6]} 20... a5 {[%clk 0:01:33.6]}
21. g4 {[%clk 0:01:47.3]} 21... f6 {[%clk 0:01:14.8]} 22. Re3 {[%clk 0:01:44.4]}
22... b4 {[%clk 0:01:12.4]} 23. axb4 {[%clk 0:01:34.7]} 23... axb4 {[%clk
0:01:12.6]} 24. Rae1 {[%clk 0:01:34.5]} 24... bxc3 {[%clk 0:01:12.1]} 25. bxc3
{[%clk 0:01:35.4]} 25... Rfc8 {[%clk 0:01:07.1]} 26. Bh7+ {[%clk 0:01:33.2]}
26... Kh8 {[%clk 0:01:05.6]} 27. Bg6 {[%clk 0:01:10.6]} 27... Qf4 {[%clk
0:01:03.3]} 28. Qe2 {[%clk 0:00:59.8]} 28... Ra3 {[%clk 0:00:57.1]} 29. Rxe6
{[%clk 0:00:39.9]} 29... Bxe6 {[%clk 0:00:57.1]} 30. Qxe6 {[%clk 0:00:40.6]}
30... Raa8 {[%clk 0:00:56.8]} 31. g3 {[%clk 0:00:29.5]} 31... Qd2 {[%clk
0:00:53]} 32. Re3 {[%clk 0:00:26]} 32... Rf8 {[%clk 0:00:39.4]} 33. Qxd5 {[%clk
0:00:18.8]} 33... Ra2 {[%clk 0:00:37.5]} 34. Qf5 {[%clk 0:00:16.8]} 34... Ra1+
{[%clk 0:00:34]} 35. Kg2 {[%clk 0:00:16]} 35... Qd1 {[%clk 0:00:34.6]} 0-1

[Event "Early-Titled-Tuesday-Blitz-February-06-2024"]
[Site "Chess.com"]
[Date "2024.02.06"]
[Round "1"]
[White "IsaqueGoncalvesSanto"]
[Black "FoggyMorning"]
[Result "0-1"]
[WhiteElo "1837"]
[BlackElo "2533"]
[TimeControl "180+1"]
[EndTime "8:07:09 PST"]
[Termination "FoggyMorning won on time"]

1. d4 {[%clk 0:02:55.7]} 1... Nf6 {[%clk 0:02:59.7]} 2. c4 {[%clk 0:02:50.9]}
2... e6 {[%clk 0:02:59.8]} 3. Nc3 {[%clk 0:02:50.6]} 3... Bb4 {[%clk 0:03:00.3]}
4. f3 {[%clk 0:02:49.3]} 4... d5 {[%clk 0:02:58.9]} 5. a3 {[%clk 0:02:44.8]}
5... Be7 {[%clk 0:02:59]} 6. Bg5 {[%clk 0:02:43.5]} 6... h6 {[%clk 0:02:25.2]}
7. Bh4 {[%clk 0:02:42.9]} 7... O-O {[%clk 0:02:24.4]} 8. e3 {[%clk 0:02:42.2]}
8... c5 {[%clk 0:02:21.2]} 9. cxd5 {[%clk 0:02:37.1]} 9... Nxd5 {[%clk
0:02:12.3]} 10. Bxe7 {[%clk 0:02:35.9]} 10... Qxe7 {[%clk 0:02:11.7]} 11. e4
{[%clk 0:02:36.1]} 11... cxd4 {[%clk 0:01:57.3]} 12. Nxd5 {[%clk 0:02:02.7]}
12... exd5 {[%clk 0:01:56.4]} 13. Qxd4 {[%clk 0:02:03.3]} 13... dxe4 {[%clk
0:01:53.8]} 14. Qxe4 {[%clk 0:02:02.1]} 14... Qf6 {[%clk 0:01:26.3]} 15. Bd3
{[%clk 0:02:00]} 15... g6 {[%clk 0:01:19.7]} 16. Rb1 {[%clk 0:01:14.7]} 16...
Bf5 {[%clk 0:01:15]} 17. Qe2 {[%clk 0:01:07.5]} 17... Nc6 {[%clk 0:01:12.6]} 18.
Bxf5 {[%clk 0:01:04.6]} 18... Qxf5 {[%clk 0:01:13.5]} 19. Qd1 {[%clk 0:00:53]}
19... Rad8 {[%clk 0:01:12.5]} 20. Qc1 {[%clk 0:00:48]} 20... Nd4 {[%clk
0:01:05.4]} 21. Kf2 {[%clk 0:00:39.3]} 21... Rfe8 {[%clk 0:00:58]} 22. Ra1
{[%clk 0:00:19.9]} 22... Nb3 {[%clk 0:00:57.6]} 23. Qxh6 {[%clk 0:00:19]} 23...
Nxa1 {[%clk 0:00:48.8]} 24. Ne2 {[%clk 0:00:16.1]} 24... Nb3 {[%clk 0:00:42.3]}
25. Re1 {[%clk 0:00:13.2]} 25... Nc5 {[%clk 0:00:37.9]} 26. Nd4 {[%clk
0:00:10.3]} 26... Nd3+ {[%clk 0:00:37.1]} 27. Kg3 {[%clk 0:00:07.9]} 27... Qc5
{[%clk 0:00:24]} 28. Nf5 {[%clk 0:00:05.8]} 28... Qxf5 {[%clk 0:00:19.6]} 29.
Rd1 {[%clk 0:00:04.8]} 29... Qf4+ {[%clk 0:00:18.6]} 30. Qxf4 {[%clk 0:00:04]}
30... Nxf4 {[%clk 0:00:19.5]} 31. Rxd8 {[%clk 0:00:02.8]} 31... Rxd8 {[%clk
0:00:20.4]} 32. Kxf4 {[%clk 0:00:03.2]} 32... Rd2 {[%clk 0:00:21]} 0-1

[Event "Early-Titled-Tuesday-Blitz-February-06-2024"]
[Site "Chess.com"]
[Date "2024.02.06"]
[Round "1"]
[White "iJueles"]
[Black "RobertoJBM"]
[Result "0-1"]
[WhiteElo "2451"]
[BlackElo "2809"]
[TimeControl "180+1"]
[EndTime "8:07:10 PST"]
[Termination "RobertoJBM won by resignation"]

1. d4 {[%clk 0:03:00.9]} 1... d5 {[%clk 0:02:52.2]} 2. c4 {[%clk 0:03:00.3]}
2... c6 {[%clk 0:02:48.2]} 3. Nf3 {[%clk 0:02:57.8]} 3... Nf6 {[%clk 0:02:47.7]}
4. Qb3 {[%clk 0:02:56.4]} 4... dxc4 {[%clk 0:02:46.8]} 5. Qxc4 {[%clk
0:02:56.5]} 5... Bf5 {[%clk 0:02:46.8]} 6. g3 {[%clk 0:02:55.5]} 6... e6 {[%clk
0:02:46.2]} 7. Bg2 {[%clk 0:02:55.7]} 7... h6 {[%clk 0:02:46.8]} 8. O-O {[%clk
0:02:55.3]} 8... Be7 {[%clk 0:02:47.4]} 9. e3 {[%clk 0:02:55.6]} 9... O-O {[%clk
0:02:47.4]} 10. Qe2 {[%clk 0:02:55.7]} 10... Nbd7 {[%clk 0:02:47.2]} 11. Nc3
{[%clk 0:02:55.9]} 11... Ne4 {[%clk 0:02:47.4]} 12. Nd2 {[%clk 0:02:56.3]} 12...
Nxd2 {[%clk 0:02:40.1]} 13. Bxd2 {[%clk 0:02:56.1]} 13... Nf6 {[%clk 0:02:40.6]}
14. Rfd1 {[%clk 0:02:53.9]} 14... Qb6 {[%clk 0:02:39.1]} 15. Na4 {[%clk
0:02:41.3]} 15... Qc7 {[%clk 0:02:38.3]} 16. Rac1 {[%clk 0:02:38.9]} 16... Rac8
{[%clk 0:02:35.2]} 17. h3 {[%clk 0:02:12.9]} 17... Rfd8 {[%clk 0:02:31.8]} 18.
Be1 {[%clk 0:02:05.1]} 18... Be4 {[%clk 0:02:28.6]} 19. Nc5 {[%clk 0:02:00]}
19... Bxg2 {[%clk 0:02:27.5]} 20. Kxg2 {[%clk 0:02:00.9]} 20... b6 {[%clk
0:02:21.5]} 21. Nb3 {[%clk 0:01:55.7]} 21... Qb7 {[%clk 0:02:20.9]} 22. Qf3
{[%clk 0:01:55.1]} 22... Rd7 {[%clk 0:02:17.6]} 23. Bc3 {[%clk 0:01:51.7]} 23...
Nd5 {[%clk 0:02:16.3]} 24. Nd2 {[%clk 0:01:46.3]} 24... c5 {[%clk 0:02:13.5]}
25. dxc5 {[%clk 0:01:41.5]} 25... Rxc5 {[%clk 0:02:12.3]} 26. Bd4 {[%clk
0:01:37.5]} 26... Rcc7 {[%clk 0:02:03.8]} 27. Ne4 {[%clk 0:01:21.7]} 27... f5
{[%clk 0:01:58.4]} 28. Nc3 {[%clk 0:01:18.7]} 28... Nxc3 {[%clk 0:01:51.4]} 29.
Bxc3 {[%clk 0:01:17.5]} 29... Qxf3+ {[%clk 0:01:50]} 30. Kxf3 {[%clk 0:01:17.7]}
30... Kf7 {[%clk 0:01:38.5]} 31. Ke2 {[%clk 0:01:14.6]} 31... Bf6 {[%clk
0:01:36.8]} 32. Bxf6 {[%clk 0:01:14.2]} 32... Kxf6 {[%clk 0:01:37.7]} 33. Rxd7
{[%clk 0:01:11.8]} 33... Rxd7 {[%clk 0:01:37.1]} 34. a3 {[%clk 0:01:07.5]} 34...
g5 {[%clk 0:01:36.2]} 35. Rc4 {[%clk 0:01:06.3]} 35... h5 {[%clk 0:01:36]} 36.
h4 {[%clk 0:01:06.5]} 36... g4 {[%clk 0:01:34.8]} 37. Rc3 {[%clk 0:01:01.2]}
37... Ke5 {[%clk 0:01:33.4]} 38. Rd3 {[%clk 0:00:54.5]} 38... Rxd3 {[%clk
0:01:26.4]} 39. Kxd3 {[%clk 0:00:54.7]} 39... Kd5 {[%clk 0:01:26.4]} 40. b3
{[%clk 0:00:54.5]} 40... a6 {[%clk 0:01:25.3]} 41. Kd2 {[%clk 0:00:47.9]} 41...
Ke4 {[%clk 0:01:24.2]} 42. Ke2 {[%clk 0:00:48.3]} 42... e5 {[%clk 0:01:23.4]}
43. a4 {[%clk 0:00:44.2]} 43... a5 {[%clk 0:01:16.2]} 44. Kd2 {[%clk 0:00:41.1]}
44... Kf3 {[%clk 0:01:08.8]} 45. Ke1 {[%clk 0:00:40.9]} 45... f4 {[%clk
0:01:05.2]} 46. gxf4 {[%clk 0:00:26.4]} 46... exf4 {[%clk 0:01:06.1]} 47. exf4
{[%clk 0:00:24.6]} 47... Kxf4 {[%clk 0:01:04.5]} 48. Ke2 {[%clk 0:00:20]} 48...
Ke4 {[%clk 0:01:04]} 49. Kf1 {[%clk 0:00:19]} 49... Kd3 {[%clk 0:00:47.6]} 50.
Kg2 {[%clk 0:00:18.9]} 50... Kc3 {[%clk 0:00:47.9]} 51. Kg3 {[%clk 0:00:19.6]}
51... Kxb3 {[%clk 0:00:48.3]} 52. Kf4 {[%clk 0:00:20.5]} 52... Kxa4 {[%clk
0:00:48.7]} 53. Kg5 {[%clk 0:00:21.4]} 53... b5 {[%clk 0:00:49.4]} 54. Kxh5
{[%clk 0:00:21.4]} 54... b4 {[%clk 0:00:50]} 55. Kg5 {[%clk 0:00:21.1]} 55... b3
{[%clk 0:00:50.4]} 56. h5 {[%clk 0:00:22]} 56... b2 {[%clk 0:00:50.9]} 57. h6
{[%clk 0:00:22.9]} 57... b1=Q {[%clk 0:00:51.3]} 0-1